[Event "*** Titled Tuesday Blitz"]
[Site "Chess.com"]
[Date "2018.08.07"]
[Round "7"]
[White "GameOverBro"]
[Black "rikyshi"]
[Result "1/2-1/2"]
[WhiteElo "2360"]
[BlackElo "2208"]
[TimeControl "180+2"]
[EndTime "14:39:12 PDT"]
[Termination "Game drawn - insufficient material"]

1. e4 {[%clk 0:03:01.9]} 1... c6 {[%clk 0:03:00.4]} 2. Nc3 {[%clk 0:03:02.2]}
2... d5 {[%clk 0:03:00.1]} 3. Nf3 {[%clk 0:03:03.6]} 3... Nf6 {[%clk 0:03:00.5]}
4. e5 {[%clk 0:03:03.7]} 4... Ne4 {[%clk 0:03:01.8]} 5. Ne2 {[%clk 0:03:05.1]}
5... Qb6 {[%clk 0:03:02.2]} 6. d4 {[%clk 0:03:06.6]} 6... e6 {[%clk 0:02:50.5]}
7. Ng3 {[%clk 0:03:06.6]} 7... c5 {[%clk 0:02:50.8]} 8. Bd3 {[%clk 0:03:07]}
8... Nxg3 {[%clk 0:02:36.5]} 9. hxg3 {[%clk 0:03:08.9]} 9... Nc6 {[%clk
0:02:36.2]} 10. c3 {[%clk 0:03:07.3]} 10... cxd4 {[%clk 0:02:31.2]} 11. cxd4
{[%clk 0:03:07.9]} 11... Bd7 {[%clk 0:02:32.6]} 12. Bc2 {[%clk 0:02:39.4]} 12...
Be7 {[%clk 0:01:47.5]} 13. a3 {[%clk 0:02:37.5]} 13... h6 {[%clk 0:01:36.6]} 14.
g4 {[%clk 0:02:37.2]} 14... Rg8 {[%clk 0:00:35.2]} 15. Bh7 {[%clk 0:02:30.5]}
15... Rh8 {[%clk 0:00:35.9]} 16. Bc2 {[%clk 0:02:31.9]} 16... Rg8 {[%clk
0:00:36.7]} 17. g3 {[%clk 0:02:29.8]} 17... O-O-O {[%clk 0:00:36.6]} 18. Kf1
{[%clk 0:02:30.2]} 18... Kb8 {[%clk 0:00:37.5]} 19. Kg2 {[%clk 0:02:31.6]} 19...
Rc8 {[%clk 0:00:38.8]} 20. b4 {[%clk 0:02:32.4]} 20... a5 {[%clk 0:00:39.3]} 21.
b5 {[%clk 0:02:08.9]} 21... Qxb5 {[%clk 0:00:38.5]} 22. Rb1 {[%clk 0:02:09.1]}
22... Qa6 {[%clk 0:00:31.7]} 23. Bd3 {[%clk 0:02:09.2]} 23... Qa7 {[%clk
0:00:30.9]} 24. Be3 {[%clk 0:01:44.3]} 24... a4 {[%clk 0:00:31.2]} 25. g5 {[%clk
0:01:26.1]} 25... hxg5 {[%clk 0:00:30.8]} 26. Nxg5 {[%clk 0:01:27.1]} 26... Bxa3
{[%clk 0:00:21]} 27. Nxf7 {[%clk 0:01:25.8]} 27... Be7 {[%clk 0:00:20.5]} 28.
Nd6 {[%clk 0:01:25.5]} 28... Bxd6 {[%clk 0:00:19]} 29. exd6 {[%clk 0:01:27.4]}
29... Na5 {[%clk 0:00:13]} 30. Rh7 {[%clk 0:01:22.4]} 30... Ka8 {[%clk 0:00:10]}
31. Qh5 {[%clk 0:01:19.4]} 31... Rb8 {[%clk 0:00:04.1]} 32. Qf7 {[%clk 0:01:20]}
32... Bc6 {[%clk 0:00:02.9]} 33. Qxe6 {[%clk 0:01:19.1]} 33... Nc4 {[%clk
0:00:03.1]} 34. d7 {[%clk 0:01:16.9]} 34... Rbd8 {[%clk 0:00:02.4]} 35. Bxc4
{[%clk 0:01:08.8]} 35... dxc4+ {[%clk 0:00:03.5]} 36. d5 {[%clk 0:01:10.1]}
36... Bxd7 {[%clk 0:00:03.1]} 37. Qxg8 {[%clk 0:01:01]} 37... Rxg8 {[%clk
0:00:04.7]} 38. Bxa7 {[%clk 0:01:00.8]} 38... Bf5 {[%clk 0:00:05.4]} 39. Ra1
{[%clk 0:00:57.2]} 39... Bxh7 {[%clk 0:00:05.7]} 40. Rxa4 {[%clk 0:00:58]} 40...
b5 {[%clk 0:00:05.9]} 41. Ra5 {[%clk 0:00:56.5]} 41... Kb7 {[%clk 0:00:02.7]}
42. Bd4 {[%clk 0:00:50.8]} 42... Be4+ {[%clk 0:00:03.3]} 43. f3 {[%clk
0:00:52.1]} 43... Bxd5 {[%clk 0:00:05.2]} 44. Rxb5+ {[%clk 0:00:53.5]} 44... Kc6
{[%clk 0:00:06.6]} 45. Rb6+ {[%clk 0:00:55]} 45... Kd7 {[%clk 0:00:06.3]} 46.
Rg6 {[%clk 0:00:56.4]} 46... Be6 {[%clk 0:00:03.6]} 47. Kf2 {[%clk 0:00:56.6]}
47... Kd6 {[%clk 0:00:03.6]} 48. Bxg7 {[%clk 0:00:56.1]} 48... Kd5 {[%clk
0:00:04]} 49. g4 {[%clk 0:00:56]} 49... c3 {[%clk 0:00:04.7]} 50. Rxe6 {[%clk
0:00:56.5]} 50... Kxe6 {[%clk 0:00:04.4]} 51. Bxc3 {[%clk 0:00:57.9]} 51... Rc8
{[%clk 0:00:05.4]} 52. Bd4 {[%clk 0:00:58.6]} 52... Kd5 {[%clk 0:00:06.3]} 53.
Be3 {[%clk 0:00:57.6]} 53... Ke5 {[%clk 0:00:03.5]} 54. Bh6 {[%clk 0:00:55.1]}
54... Rc6 {[%clk 0:00:03.1]} 55. Bd2 {[%clk 0:00:42.6]} 55... Rd6 {[%clk
0:00:03.4]} 56. Ke3 {[%clk 0:00:43.5]} 56... Rc6 {[%clk 0:00:04.3]} 57. f4+
{[%clk 0:00:43.5]} 57... Kf6 {[%clk 0:00:05.3]} 58. Ke4 {[%clk 0:00:39.8]} 58...
Re6+ {[%clk 0:00:05.7]} 59. Kf3 {[%clk 0:00:41.1]} 59... Rd6 {[%clk 0:00:05.8]}
60. Bc3+ {[%clk 0:00:42.1]} 60... Kg6 {[%clk 0:00:07.2]} 61. Ke4 {[%clk
0:00:42.3]} 61... Rc6 {[%clk 0:00:07.7]} 62. Bd2 {[%clk 0:00:42]} 62... Rc4+
{[%clk 0:00:08.6]} 63. Kd5 {[%clk 0:00:42.5]} 63... Rc2 {[%clk 0:00:07.3]} 64.
Be3 {[%clk 0:00:43.1]} 64... Re2 {[%clk 0:00:07.1]} 65. Ke4 {[%clk 0:00:43.7]}
65... Rg2 {[%clk 0:00:08.1]} 66. Kf3 {[%clk 0:00:44.7]} 66... Ra2 {[%clk
0:00:08.3]} 67. f5+ {[%clk 0:00:45]} 67... Kf6 {[%clk 0:00:08.9]} 68. Bd4+
{[%clk 0:00:46.4]} 68... Kg5 {[%clk 0:00:09.8]} 69. Bc5 {[%clk 0:00:47.7]} 69...
Rc2 {[%clk 0:00:09.1]} 70. Be7+ {[%clk 0:00:48.4]} 70... Kh6 {[%clk 0:00:10.3]}
71. Kf4 {[%clk 0:00:49.1]} 71... Rc4+ {[%clk 0:00:10.5]} 72. Kg3 {[%clk
0:00:49.4]} 72... Rc3+ {[%clk 0:00:10.7]} 73. Kh4 {[%clk 0:00:50.7]} 73... Rc4
{[%clk 0:00:12.6]} 74. Bg5+ {[%clk 0:00:52.1]} 74... Kg7 {[%clk 0:00:13.5]} 75.
Kh5 {[%clk 0:00:53.1]} 75... Rc2 {[%clk 0:00:10]} 76. Bf4 {[%clk 0:00:53.3]}
76... Rc4 {[%clk 0:00:09.3]} 77. Be5+ {[%clk 0:00:54.3]} 77... Kf7 {[%clk
0:00:08.2]} 78. Bd6 {[%clk 0:00:49.8]} 78... Rd4 {[%clk 0:00:07.1]} 79. Bc5
{[%clk 0:00:50.2]} 79... Rd5 {[%clk 0:00:08.1]} 80. Bb6 {[%clk 0:00:51.3]} 80...
Rb5 {[%clk 0:00:08.9]} 81. Bc7 {[%clk 0:00:51.9]} 81... Kf6 {[%clk 0:00:08.7]}
82. Bd8+ {[%clk 0:00:52.3]} 82... Kf7 {[%clk 0:00:08.7]} 83. Kh6 {[%clk
0:00:53]} 83... Rd5 {[%clk 0:00:06.5]} 84. Bc7 {[%clk 0:00:51.3]} 84... Rc5
{[%clk 0:00:07.2]} 85. Bb8 {[%clk 0:00:48.8]} 85... Rc4 {[%clk 0:00:07.4]} 86.
Kh5 {[%clk 0:00:47.8]} 86... Rb4 {[%clk 0:00:07.8]} 87. Bd6 {[%clk 0:00:48.6]}
87... Rd4 {[%clk 0:00:08.4]} 88. Ba3 {[%clk 0:00:48.9]} 88... Rd3 {[%clk
0:00:08.3]} 89. Bb2 {[%clk 0:00:49.5]} 89... Rb3 {[%clk 0:00:08.9]} 90. Ba1
{[%clk 0:00:49.1]} 90... Ra3 {[%clk 0:00:08.6]} 91. Be5 {[%clk 0:00:50]} 91...
Re3 {[%clk 0:00:09.1]} 92. Bf4 {[%clk 0:00:51.1]} 92... Rf3 {[%clk 0:00:09.4]}
93. Kg5 {[%clk 0:00:52.5]} 93... Rh3 {[%clk 0:00:09.5]} 94. Be5 {[%clk
0:00:53.2]} 94... Re3 {[%clk 0:00:09.8]} 95. Kf4 {[%clk 0:00:54.3]} 95... Rb3
{[%clk 0:00:09.2]} 96. g5 {[%clk 0:00:55.7]} 96... Rb4+ {[%clk 0:00:08.9]} 97.
Kf3 {[%clk 0:00:57.1]} 97... Rb5 {[%clk 0:00:09.2]} 98. Ke4 {[%clk 0:00:58.3]}
98... Rb4+ {[%clk 0:00:07.6]} 99. Bd4 {[%clk 0:00:59.8]} 99... Ra4 {[%clk
0:00:04.4]} 100. g6+ {[%clk 0:01:01.2]} 100... Kg8 {[%clk 0:00:05.2]} 101. Ke5
{[%clk 0:01:02.4]} 101... Ra6 {[%clk 0:00:05.3]} 102. Be3 {[%clk 0:01:02.2]}
102... Rc6 {[%clk 0:00:03.1]} 103. f6 {[%clk 0:01:02.6]} 103... Rc7 {[%clk
0:00:02.9]} 104. Ke6 {[%clk 0:01:03.2]} 104... Rc6+ {[%clk 0:00:02.8]} 105. Ke7
{[%clk 0:01:04.5]} 105... Rc7+ {[%clk 0:00:03.9]} 106. Kd6 {[%clk 0:01:04.2]}
106... Rb7 {[%clk 0:00:04.3]} 107. Bc5 {[%clk 0:01:00.9]} 107... Rg7 {[%clk
0:00:04.4]} 108. Ke6 {[%clk 0:00:21.3]} 108... Rxg6 {[%clk 0:00:05.4]} 109. Ke7
{[%clk 0:00:22.8]} 109... Rg7+ {[%clk 0:00:03.9]} 110. Ke8 {[%clk 0:00:23]}
110... Rf7 {[%clk 0:00:04.6]} 111. Be7 {[%clk 0:00:23.6]} 111... Rxf6 {[%clk
0:00:04.3]} 112. Bxf6 {[%clk 0:00:24.3]} 1/2-1/2

[Event "*** Titled Tuesday Blitz"]
[Site "Chess.com"]
[Date "2018.08.07"]
[Round "8"]
[White "FearlessKing64"]
[Black "Perecke"]
[Result "1-0"]
[WhiteElo "2228"]
[BlackElo "1917"]
[TimeControl "180+2"]
[EndTime "14:42:22 PDT"]
[Termination "FearlessKing64 won by resignation"]

1. e4 {[%clk 0:03:01.9]} 1... e5 {[%clk 0:03:00.8]} 2. Nf3 {[%clk 0:03:03.1]}
2... Nc6 {[%clk 0:03:01.8]} 3. Bc4 {[%clk 0:03:04.5]} 3... Bc5 {[%clk
0:03:02.1]} 4. b4 {[%clk 0:03:05.7]} 4... Bxb4 {[%clk 0:03:02.5]} 5. c3 {[%clk
0:03:06.9]} 5... Ba5 {[%clk 0:03:03.9]} 6. d4 {[%clk 0:03:07.2]} 6... exd4
{[%clk 0:03:04.9]} 7. O-O {[%clk 0:03:07.8]} 7... Nge7 {[%clk 0:03:05.4]} 8. Ng5
{[%clk 0:03:07.2]} 8... O-O {[%clk 0:03:02.6]} 9. Qh5 {[%clk 0:03:06.7]} 9... h6
{[%clk 0:02:53.7]} 10. Nxf7 {[%clk 0:03:04.9]} 10... Rxf7 {[%clk 0:02:53.7]} 11.
Bxf7+ {[%clk 0:02:56.6]} 11... Kf8 {[%clk 0:02:54.6]} 12. Bb3 {[%clk 0:02:50.8]}
12... Qe8 {[%clk 0:02:47.7]} 13. Qf3+ {[%clk 0:02:48.4]} 1-0

[Event "*** Titled Tuesday Blitz"]
[Site "Chess.com"]
[Date "2018.08.07"]
[Round "8"]
[White "Quiet_Desperation"]
[Black "misha_melnichuk"]
[Result "0-1"]
[WhiteElo "1923"]
[BlackElo "2606"]
[TimeControl "180+2"]
[EndTime "14:42:25 PDT"]
[Termination "misha_melnichuk won by resignation"]

1. e4 {[%clk 0:03:01.9]} 1... c5 {[%clk 0:02:58.8]} 2. Nf3 {[%clk 0:03:02.1]}
2... Nc6 {[%clk 0:03:00.1]} 3. d4 {[%clk 0:03:03.2]} 3... cxd4 {[%clk
0:03:01.4]} 4. Nxd4 {[%clk 0:03:05.1]} 4... g6 {[%clk 0:03:02]} 5. Nc3 {[%clk
0:03:06]} 5... Bg7 {[%clk 0:03:02.7]} 6. Be3 {[%clk 0:03:06.7]} 6... Nf6 {[%clk
0:03:04.2]} 7. Bc4 {[%clk 0:03:07.9]} 7... Qa5 {[%clk 0:03:04.2]} 8. Bb3 {[%clk
0:03:08.7]} 8... Nxe4 {[%clk 0:02:59.9]} 9. O-O {[%clk 0:03:07.1]} 9... Nxc3
{[%clk 0:02:58.3]} 10. bxc3 {[%clk 0:03:08.3]} 10... Qxc3 {[%clk 0:02:53.3]} 11.
Nb5 {[%clk 0:03:08.8]} 11... Qa5 {[%clk 0:02:52.4]} 12. a4 {[%clk 0:03:09.6]}
12... O-O {[%clk 0:02:48.5]} 13. Rb1 {[%clk 0:03:07]} 13... a6 {[%clk
0:02:46.3]} 14. Nd4 {[%clk 0:03:06.8]} 14... d6 {[%clk 0:02:38.7]} 15. Qd2
{[%clk 0:03:05.5]} 15... Qxd2 {[%clk 0:02:38.4]} 0-1

[Event "*** Titled Tuesday Blitz"]
[Site "Chess.com"]
[Date "2018.08.07"]
[Round "8"]
[White "albi1999"]
[Black "josiwales"]
[Result "1-0"]
[WhiteElo "2405"]
[BlackElo "2505"]
[TimeControl "180+2"]
[EndTime "14:42:40 PDT"]
[Termination "albi1999 won by resignation"]

1. d4 {[%clk 0:03:01]} 1... d5 {[%clk 0:03:01]} 2. c4 {[%clk 0:02:56.7]} 2... c6
{[%clk 0:03:02.3]} 3. Nc3 {[%clk 0:02:56.6]} 3... Nf6 {[%clk 0:03:02.7]} 4. cxd5
{[%clk 0:02:58]} 4... cxd5 {[%clk 0:03:03.2]} 5. Bf4 {[%clk 0:02:59.9]} 5... Nc6
{[%clk 0:03:03.5]} 6. e3 {[%clk 0:03:01.4]} 6... Bg4 {[%clk 0:03:04.9]} 7. Nf3
{[%clk 0:03:01.2]} 7... Ne4 {[%clk 0:03:04.3]} 8. Qb3 {[%clk 0:02:48.2]} 8...
Na5 {[%clk 0:02:56.2]} 9. Bb5+ {[%clk 0:02:30.2]} 9... Bd7 {[%clk 0:02:53.3]}
10. Qxd5 {[%clk 0:02:27.7]} 10... Nxc3 {[%clk 0:02:44.7]} 11. bxc3 {[%clk
0:02:26.3]} 11... e6 {[%clk 0:02:42.6]} 12. Bxd7+ {[%clk 0:02:26.1]} 1-0

[Event "*** Titled Tuesday Blitz"]
[Site "Chess.com"]
[Date "2018.08.07"]
[Round "8"]
[White "JoakimVonAnd"]
[Black "MFBerna"]
[Result "0-1"]
[WhiteElo "2370"]
[BlackElo "2299"]
[TimeControl "180+2"]
[EndTime "14:43:44 PDT"]
[Termination "MFBerna won by resignation"]

1. d4 {[%clk 0:03:01.6]} 1... d5 {[%clk 0:02:58.9]} 2. c4 {[%clk 0:03:00]} 2...
c6 {[%clk 0:02:55.7]} 3. Nf3 {[%clk 0:03:00]} 3... Nf6 {[%clk 0:02:55.2]} 4. e3
{[%clk 0:03:00.6]} 4... e6 {[%clk 0:02:56.2]} 5. b3 {[%clk 0:02:55.9]} 5... Bd6
{[%clk 0:02:56.5]} 6. Bd3 {[%clk 0:02:56.5]} 6... O-O {[%clk 0:02:57.8]} 7. O-O
{[%clk 0:02:57.3]} 7... Nbd7 {[%clk 0:02:59.2]} 8. Nbd2 {[%clk 0:02:58.3]} 8...
e5 {[%clk 0:03:00.5]} 9. dxe5 {[%clk 0:02:53.2]} 9... Nxe5 {[%clk 0:03:02.4]}
10. Nxe5 {[%clk 0:02:46.5]} 10... Bxe5 {[%clk 0:03:04.3]} 11. Rb1 {[%clk
0:02:47.9]} 11... Bg4 {[%clk 0:03:04.4]} 12. Be2 {[%clk 0:02:45.8]} 12... Bf5
{[%clk 0:03:04.4]} 13. Bb2 {[%clk 0:02:43.1]} 13... Bxb1 {[%clk 0:03:03.9]} 14.
Bxe5 {[%clk 0:02:38.6]} 14... Bg6 {[%clk 0:03:05.1]} 15. Qa1 {[%clk 0:02:36.4]}
15... dxc4 {[%clk 0:03:03]} 16. Nxc4 {[%clk 0:02:36.9]} 16... Ne8 {[%clk
0:03:00]} 17. Rd1 {[%clk 0:02:35.4]} 17... Qe7 {[%clk 0:03:01.4]} 18. Nd6 {[%clk
0:02:33.9]} 18... f6 {[%clk 0:02:56.7]} 19. Bc4+ {[%clk 0:02:32.2]} 19... Kh8
{[%clk 0:02:57]} 20. Nxe8 {[%clk 0:02:32.7]} 20... fxe5 {[%clk 0:02:41.1]} 21.
Nd6 {[%clk 0:02:32.6]} 21... Rad8 {[%clk 0:02:39.7]} 0-1

[Event "*** Titled Tuesday Blitz"]
[Site "Chess.com"]
[Date "2018.08.07"]
[Round "8"]
[White "francogreek"]
[Black "murmah2003"]
[Result "0-1"]
[WhiteElo "2415"]
[BlackElo "2561"]
[TimeControl "180+2"]
[EndTime "14:44:52 PDT"]
[Termination "murmah2003 won by resignation"]

1. e4 {[%clk 0:03:01.9]} 1... c5 {[%clk 0:02:58.5]} 2. a3 {[%clk 0:03:02.9]}
2... g6 {[%clk 0:02:56.9]} 3. h4 {[%clk 0:03:03.9]} 3... h6 {[%clk 0:02:47.7]}
4. h5 {[%clk 0:03:02.8]} 4... g5 {[%clk 0:02:48.3]} 5. Bc4 {[%clk 0:03:03.7]}
5... Bg7 {[%clk 0:02:47.9]} 6. Nc3 {[%clk 0:03:05.2]} 6... e6 {[%clk 0:02:48.7]}
7. d3 {[%clk 0:03:01.4]} 7... Ne7 {[%clk 0:02:47.4]} 8. Nf3 {[%clk 0:03:01.3]}
8... d5 {[%clk 0:02:47.9]} 9. exd5 {[%clk 0:03:01.2]} 9... exd5 {[%clk
0:02:49.8]} 10. Ba2 {[%clk 0:03:01.9]} 10... Bg4 {[%clk 0:02:47]} 11. Bd2 {[%clk
0:02:49.7]} 11... Nbc6 {[%clk 0:02:43.8]} 12. Be3 {[%clk 0:02:16.4]} 12... d4
{[%clk 0:02:19.9]} 13. Bxf7+ {[%clk 0:02:16.9]} 13... Kxf7 {[%clk 0:02:18.5]}
14. Nxg5+ {[%clk 0:02:18]} 14... hxg5 {[%clk 0:02:19.8]} 15. Qxg4 {[%clk
0:02:19.9]} 15... dxc3 {[%clk 0:02:17.7]} 16. Bxg5 {[%clk 0:02:09.3]} 16... cxb2
{[%clk 0:02:11.9]} 17. Rb1 {[%clk 0:02:09.4]} 17... Qd5 {[%clk 0:02:12]} 18. h6
{[%clk 0:02:04.6]} 18... Qe6+ {[%clk 0:02:08.2]} 19. Qxe6+ {[%clk 0:02:03.1]}
19... Kxe6 {[%clk 0:02:10.1]} 20. Kd2 {[%clk 0:02:01.8]} 20... Bf6 {[%clk
0:02:09.5]} 21. Rbe1+ {[%clk 0:02:00.3]} 21... Kf7 {[%clk 0:02:09.4]} 22. Be3
{[%clk 0:02:02.2]} 22... Nd5 {[%clk 0:02:08.6]} 23. Bxc5 {[%clk 0:01:58.1]}
23... Bc3+ {[%clk 0:02:08]} 24. Ke2 {[%clk 0:01:57.1]} 24... Rae8+ {[%clk
0:02:09.3]} 0-1

[Event "*** Titled Tuesday Blitz"]
[Site "Chess.com"]
[Date "2018.08.07"]
[Round "8"]
[White "GameOverBro"]
[Black "fidetrainerNET"]
[Result "0-1"]
[WhiteElo "2345"]
[BlackElo "1932"]
[TimeControl "180+2"]
[EndTime "14:44:55 PDT"]
[Termination "fidetrainerNET won by resignation"]

1. e4 {[%clk 0:03:01.9]} 1... c5 {[%clk 0:03:01.9]} 2. Ne2 {[%clk 0:03:02.4]}
2... d5 {[%clk 0:03:02.7]} 3. exd5 {[%clk 0:03:02.7]} 3... Nf6 {[%clk
0:03:03.6]} 4. Nbc3 {[%clk 0:03:03.1]} 4... Nxd5 {[%clk 0:03:04.4]} 5. g3 {[%clk
0:03:04.5]} 5... e6 {[%clk 0:03:04.2]} 6. Bg2 {[%clk 0:03:05.1]} 6... Nc6 {[%clk
0:03:04.6]} 7. O-O {[%clk 0:03:05.5]} 7... Be7 {[%clk 0:03:05.5]} 8. b3 {[%clk
0:03:05.9]} 8... Bf6 {[%clk 0:03:05.8]} 9. Bb2 {[%clk 0:03:06.8]} 9... O-O
{[%clk 0:03:06.6]} 10. Rb1 {[%clk 0:03:06]} 10... Ndb4 {[%clk 0:03:04.1]} 11. a3
{[%clk 0:03:06.1]} 11... Na6 {[%clk 0:03:03.5]} 12. Ne4 {[%clk 0:03:04.2]} 12...
Bxb2 {[%clk 0:03:01.6]} 13. Rxb2 {[%clk 0:03:06.1]} 13... f5 {[%clk 0:03:01.7]}
14. N4c3 {[%clk 0:03:02.8]} 14... e5 {[%clk 0:02:57.7]} 15. Nd5 {[%clk
0:03:00.1]} 15... Be6 {[%clk 0:02:55.1]} 16. c4 {[%clk 0:02:53.4]} 16... Kh8
{[%clk 0:02:51.7]} 17. d3 {[%clk 0:02:52.1]} 17... Nc7 {[%clk 0:02:51.9]} 18.
Nec3 {[%clk 0:02:52.4]} 18... Rb8 {[%clk 0:02:49.4]} 19. Re1 {[%clk 0:02:52.7]}
19... Re8 {[%clk 0:02:48.4]} 20. b4 {[%clk 0:02:53.5]} 20... cxb4 {[%clk
0:02:48]} 21. axb4 {[%clk 0:02:55.4]} 21... Bg8 {[%clk 0:02:45.2]} 22. b5 {[%clk
0:02:56]} 22... Nd4 {[%clk 0:02:45.3]} 23. Nxc7 {[%clk 0:02:56.5]} 23... Qxc7
{[%clk 0:02:43]} 24. Nd5 {[%clk 0:02:57.3]} 24... Qd8 {[%clk 0:02:41.8]} 25. Qa4
{[%clk 0:02:55.9]} 25... Ra8 {[%clk 0:02:40.8]} 26. h4 {[%clk 0:02:52]} 26... g5
{[%clk 0:02:40.1]} 27. hxg5 {[%clk 0:02:52.3]} 27... Qxg5 {[%clk 0:02:40.8]} 28.
c5 {[%clk 0:02:48.1]} 28... f4 {[%clk 0:02:39.8]} 29. Nc7 {[%clk 0:02:43.4]}
29... fxg3 {[%clk 0:02:38.4]} 30. Nxe8 {[%clk 0:02:42.5]} 30... gxf2+ {[%clk
0:02:39]} 31. Rxf2 {[%clk 0:02:44.2]} 31... Rxe8 {[%clk 0:02:38.8]} 32. Qxa7
{[%clk 0:02:26.5]} 32... Re7 {[%clk 0:02:36.2]} 33. Qb8 {[%clk 0:02:24.4]} 33...
Rg7 {[%clk 0:02:36.2]} 34. Qxe5 {[%clk 0:02:22.7]} 34... Nf3+ {[%clk 0:02:37.1]}
0-1

[Event "*** Titled Tuesday Blitz"]
[Site "Chess.com"]
[Date "2018.08.07"]
[Round "8"]
[White "indfraeng"]
[Black "CarlssonLudvig"]
[Result "1-0"]
[WhiteElo "1939"]
[BlackElo "2192"]
[TimeControl "180+2"]
[EndTime "14:45:23 PDT"]
[Termination "indfraeng won by resignation"]

1. d4 {[%clk 0:03:01.9]} 1... Nf6 {[%clk 0:03:00.5]} 2. c4 {[%clk 0:03:01.3]}
2... e6 {[%clk 0:03:01.4]} 3. g3 {[%clk 0:03:00.1]} 3... Bb4+ {[%clk 0:03:01.2]}
4. Bd2 {[%clk 0:03:00]} 4... Bxd2+ {[%clk 0:03:02.2]} 5. Qxd2 {[%clk 0:03:00.5]}
5... O-O {[%clk 0:03:02.6]} 6. Nc3 {[%clk 0:03:00.3]} 6... d5 {[%clk 0:03:02.6]}
7. Nf3 {[%clk 0:02:59.9]} 7... c6 {[%clk 0:03:02.1]} 8. Bg2 {[%clk 0:02:58.7]}
8... b6 {[%clk 0:03:03.2]} 9. O-O {[%clk 0:02:58.4]} 9... Bb7 {[%clk 0:03:04.7]}
10. Ne5 {[%clk 0:02:55.8]} 10... Nbd7 {[%clk 0:03:04.4]} 11. cxd5 {[%clk
0:02:48.7]} 11... cxd5 {[%clk 0:03:05]} 12. Nxd7 {[%clk 0:02:49.3]} 12... Qxd7
{[%clk 0:03:04.9]} 13. Rac1 {[%clk 0:02:49.6]} 13... Rfc8 {[%clk 0:03:03.2]} 14.
Rc2 {[%clk 0:02:22.1]} 14... Rc7 {[%clk 0:03:01.5]} 15. Rfc1 {[%clk 0:02:22.8]}
15... Rac8 {[%clk 0:03:02.2]} 16. b3 {[%clk 0:02:18.2]} 16... Ba6 {[%clk
0:02:58.3]} 17. Na4 {[%clk 0:02:13.3]} 17... Rxc2 {[%clk 0:02:50.8]} 18. Rxc2
{[%clk 0:02:13.1]} 18... Rxc2 {[%clk 0:02:49.1]} 19. Qxc2 {[%clk 0:02:14]} 19...
Qc8 {[%clk 0:02:50.2]} 20. Qxc8+ {[%clk 0:02:10.1]} 20... Bxc8 {[%clk
0:02:52.1]} 21. Nc3 {[%clk 0:02:03.8]} 21... Ba6 {[%clk 0:02:52.1]} 22. e3
{[%clk 0:02:01.1]} 22... Kf8 {[%clk 0:02:49.3]} 23. Bf1 {[%clk 0:02:01.1]} 23...
Bxf1 {[%clk 0:02:50.1]} 24. Kxf1 {[%clk 0:02:03]} 24... Ke7 {[%clk 0:02:50.3]}
25. Ke2 {[%clk 0:02:03.5]} 25... Kd6 {[%clk 0:02:50.9]} 26. Nb5+ {[%clk
0:02:04.4]} 26... Kc6 {[%clk 0:02:42.8]} 27. Nxa7+ {[%clk 0:02:04.3]} 27... Kb7
{[%clk 0:02:44.2]} 28. Nb5 {[%clk 0:02:05.3]} 28... Kc6 {[%clk 0:02:45.6]} 29.
a4 {[%clk 0:02:05.3]} 29... h5 {[%clk 0:02:46.7]} 30. h4 {[%clk 0:02:05.3]}
30... g6 {[%clk 0:02:46.9]} 31. f3 {[%clk 0:02:03.7]} 31... Ne8 {[%clk
0:02:45.2]} 32. e4 {[%clk 0:02:01.2]} 32... Nf6 {[%clk 0:02:45.8]} 33. e5 {[%clk
0:02:01.4]} 33... Ne8 {[%clk 0:02:46.3]} 34. g4 {[%clk 0:02:00.5]} 34... Ng7
{[%clk 0:02:45.5]} 35. Kd3 {[%clk 0:01:58.9]} 35... Ne8 {[%clk 0:02:31.4]} 36.
Ke3 {[%clk 0:01:58.5]} 36... Ng7 {[%clk 0:02:31.9]} 37. Nd6 {[%clk 0:01:57.5]}
37... f6 {[%clk 0:02:27]} 38. exf6 {[%clk 0:01:57.5]} 1-0

[Event "*** Titled Tuesday Blitz"]
[Site "Chess.com"]
[Date "2018.08.07"]
[Round "8"]
[White "Makalexa"]
[Black "Manukyan_Artak"]
[Result "1-0"]
[WhiteElo "2137"]
[BlackElo "2331"]
[TimeControl "180+2"]
[EndTime "14:45:25 PDT"]
[Termination "Makalexa won by resignation"]

1. e4 {[%clk 0:03:01.9]} 1... c6 {[%clk 0:02:59.6]} 2. d4 {[%clk 0:03:00.3]}
2... d5 {[%clk 0:03:00.9]} 3. exd5 {[%clk 0:02:52.5]} 3... cxd5 {[%clk
0:03:01.7]} 4. Nf3 {[%clk 0:02:53]} 4... Nc6 {[%clk 0:03:02.4]} 5. c4 {[%clk
0:02:53.5]} 5... Nf6 {[%clk 0:03:02.8]} 6. Nc3 {[%clk 0:02:52.9]} 6... Bg4
{[%clk 0:03:03.2]} 7. cxd5 {[%clk 0:02:49.2]} 7... Nxd5 {[%clk 0:03:03]} 8. Qb3
{[%clk 0:02:49]} 8... Bxf3 {[%clk 0:03:02.9]} 9. gxf3 {[%clk 0:02:44.5]} 9...
Nb6 {[%clk 0:02:59.9]} 10. Be3 {[%clk 0:02:30.2]} 10... e6 {[%clk 0:02:58.8]}
11. O-O-O {[%clk 0:02:28.2]} 11... Be7 {[%clk 0:02:47.3]} 12. Rg1 {[%clk
0:02:27.1]} 12... O-O {[%clk 0:02:36.7]} 13. Kb1 {[%clk 0:02:26.7]} 13... Nd5
{[%clk 0:02:25.3]} 14. Bh6 {[%clk 0:02:00.2]} 14... Nxc3+ {[%clk 0:02:25.3]} 15.
Qxc3 {[%clk 0:01:57.4]} 15... Bf6 {[%clk 0:02:24.6]} 16. Bb5 {[%clk 0:01:50.4]}
16... Rc8 {[%clk 0:02:19.9]} 17. Rxg7+ {[%clk 0:01:38.6]} 17... Bxg7 {[%clk
0:02:19.3]} 18. Rg1 {[%clk 0:01:40]} 18... Qf6 {[%clk 0:02:11.1]} 19. Bxg7
{[%clk 0:01:37.2]} 19... Qf5+ {[%clk 0:01:46.4]} 20. Bd3 {[%clk 0:01:36.3]}
20... Ne5 {[%clk 0:01:34.3]} 21. Bxe5+ {[%clk 0:01:35.4]} 1-0